bitfinex/quotes_ETHUSD_20241204
["timestamp","ask_amount","ask_price","bid_price","bid_amount"]
[1733325655412,0.55,3813.8,3812.5,3.2]
[1733325655646,0.55,3813.8,3812.5,0.2]
[1733325655814,0.55,3814.0,3812.5,0.2]
[1733325656010,0.55,3813.8,3812.5,0.2]
[1733325656213,0.55,3813.8,3811.9,1.5124]
[1733325656214,0.55,3813.4,3811.5,0.2]
[1733325656562,0.55,3812.9,3812.0,2.62328]
[1733325656709,0.55,3812.6,3811.5,0.2]
[1733325656910,1.5834,3813.3,3812.3,2.62308]
[1733325656911,0.55,3813.2,3812.3,2.62308]
[1733325657255,1.5834,3813.3,3812.5,0.2]
[1733325657423,1.5665,3813.8,3812.5,0.2]
[1733325657625,0.52639442,3813.4,3812.7,2.62278]
[1733325657848,1.5665,3813.8,3812.8,2.62274]
[1733325658046,1.5665,3813.8,3812.8,2.62267]
[1733325658254,0.18288944,3813.7,3812.7,2.62278]
[1733325658425,0.18288944,3813.7,3812.2,0.2]
[1733325658627,0.55,3813.6,3812.7,2.62277]
[1733325658831,0.55,3813.4,3812.2,0.2]
[1733325659263,0.55,3813.2,3811.6,0.2]
[1733325659425,0.55,3813.0,3811.8,2.62342]
[1733325659631,0.55,3813.0,3812.4,2.62301]
[1733325659828,0.55,3813.0,3812.1,0.2]
[1733325660043,1.5379,3813.3,3812.5,2.62293]
[1733325660361,0.55,3813.2,3812.0,2.82324]
[1733325660569,0.55,3813.0,3812.0,2.82324]
[1733325660770,0.55,3813.0,3812.0,0.2]
[1733325661063,1.5379,3813.3,3811.7,3.0]
[1733325661064,0.55,3813.2,3812.7,2.6228]
[1733325661268,0.18288944,3813.7,3812.6,0.2]
[1733325661426,3.33,3815.5,3812.6,0.2]
[1733325661427,1.5769,3814.8,3813.0,0.2]
[1733325661626,0.51201652,3814.4,3812.8,0.2]
[1733325661827,0.51201652,3814.4,3812.8,3.2]
[1733325662058,0.51201652,3814.4,3813.3,2.62238]
[1733325662258,0.31335465,3814.3,3813.5,2.62226]
[1733325662466,1.5769,3814.8,3813.8,0.2]
[1733325663171,1.5769,3814.8,3814.2,2.62176]
[1733325663469,1.5769,3814.8,3814.0,0.2]
[1733325663629,1.5769,3814.8,3813.6,2.62215]
[1733325663630,4.48360046,3815.0,3814.3,0.2]
[1733325663825,4.48360046,3815.0,3814.9,4.3993]
[1733325664032,4.6e-07,3815.0,3814.9,7.3993]
[1733325665226,3.33,3815.5,3815.4,7.38935]
[1733325665441,0.1622233,3816.5,3816.4,2.62027]
[1733325665687,0.1622233,3816.5,3815.9,3.0]
[1733325665839,0.1622233,3816.5,3816.3,2.6203]
[1733325666038,0.1622233,3816.5,3816.1,3.0]
[1733325666378,0.1622233,3816.5,3816.0,2.62054]
[1733325666379,0.1622233,3816.5,3816.4,2.62027]
[1733325666541,0.1622233,3816.5,3816.0,0.2]
[1733325666944,0.1622233,3816.5,3816.1,3.0]
[1733325667138,0.1622233,3816.5,3816.2,2.62039]
[1733325667343,0.1622233,3816.5,3816.1,2.62047]
[1733325667544,0.1622233,3816.5,3816.4,2.62027]
[1733325668201,0.1622233,3816.5,3814.9,0.2]
[1733325668202,0.55,3816.4,3814.9,0.2]
[1733325668343,0.55,3816.4,3814.6,2.6215]
[1733325668344,3.17047,3816.2,3814.6,0.2]
[1733325668681,0.23517233,3816.3,3815.5,0.2]
[1733325668682,0.55,3816.0,3815.5,0.2]
[1733325668885,0.23517233,3816.3,3815.8,0.2]
[1733325669192,0.1622233,3816.5,3816.3,2.6203]
[1733325669479,0.1622233,3816.5,3816.0,0.2]
[1733325669480,0.1622233,3816.5,3816.4,2.62027]
[1733325669947,0.1622233,3816.5,3816.4,2.82027]
[1733325670146,0.1622233,3816.5,3816.4,5.82027]
[1733325670482,0.1622233,3816.5,3816.4,8.063397]
[1733325670643,0.1622233,3816.5,3816.4,7.48137]
[1733325671281,0.1622233,3816.5,3816.4,5.82027]
[1733325672138,0.1622233,3816.5,3816.0,2.62049]
[1733325672139,0.1622233,3816.5,3816.0,0.2]
[1733325672378,0.1622233,3816.5,3814.9,2.98578137]
[1733325672379,1.5233,3816.4,3814.9,0.2]
[1733325672581,1.5233,3816.4,3814.5,0.2]
[1733325672743,0.55,3815.9,3814.9,2.62128]
[1733325672956,0.55,3815.9,3815.2,0.2]
[1733325673194,0.52327028,3816.2,3815.2,0.2]
[1733325673195,0.55,3816.2,3815.7,2.62074]
[1733325673401,0.55,3816.3,3816.2,2.6204]
[1733325673604,0.55,3816.3,3815.3,1.6454]
[1733325673605,0.55,3816.3,3815.5,0.2]
[1733325673806,1.5233,3816.4,3815.5,0.2]
[1733325673807,0.55,3816.1,3815.5,2.82085]
[1733325673958,0.55,3816.1,3815.5,2.62085]
[1733325674154,0.55,3816.1,3815.5,0.2]
[1733325674458,0.1622233,3816.5,3816.4,2.62027]
[1733325674798,0.1622233,3816.5,3815.7,0.2]
[1733325675001,0.1622233,3816.5,3816.1,2.62046]
[1733325675157,0.1622233,3816.5,3815.6,2.6208]
[1733325675494,0.1622233,3816.5,3815.6,0.2]
[1733325675695,0.55,3816.4,3815.5,0.2]
[1733325675902,0.1622233,3816.5,3815.5,0.2]
[1733325676552,0.1622233,3816.5,3815.6,2.6208]
[1733325676770,0.55,3816.4,3815.4,2.62095]
[1733325676966,0.1622233,3816.5,3815.4,2.62095]
[1733325676967,0.33323533,3816.3,3815.6,0.2]
[1733325677291,0.55,3816.4,3815.6,0.2]
[1733325677477,0.55,3816.4,3815.4,0.2]
[1733325678206,0.55,3816.4,3815.6,2.62079]
[1733325678407,0.1622233,3816.5,3814.8,1.6454]
[1733325678408,0.55,3816.2,3815.3,3.0]
[1733325678607,0.52532999,3816.3,3815.0,0.2]
[1733325678608,0.55,3816.0,3815.0,0.2]
[1733325678813,0.55,3816.0,3813.5,0.2]
[1733325678814,0.55,3815.6,3814.3,0.2]
[1733325679111,2.62088,3815.5,3814.3,0.2]
[1733325679268,1.5491,3815.2,3813.9,2.82194]
[1733325679475,0.55,3815.1,3814.1,2.62184]
[1733325679700,0.55,3815.1,3814.2,2.62174]
[1733325679904,0.55,3815.1,3814.5,2.62154]
[1733325680107,0.55,3815.1,3813.9,0.2]
[1733325680311,1.022006,3815.1,3814.0,2.62191]
[1733325680557,1.022006,3815.1,3814.1,2.62181]
[1733325680689,1.022006,3815.1,3814.3,0.2]
[1733325681024,0.55,3814.9,3813.6,0.19160238]
[1733325681230,0.55,3814.7,3813.0,0.19160238]
[1733325681435,0.53004523,3815.3,3812.6,2.81447238]
[1733325681436,2.62191,3814.0,3812.6,2.81447238]
[1733325681586,1.564,3814.4,3812.6,2.81447238]
[1733325681587,0.55,3814.1,3812.6,0.19160238]
[1733325681785,1.564,3814.2,3812.3,2.62303]
[1733325681786,1.564,3814.2,3813.4,0.19160238]
[1733325682022,1.564,3814.7,3813.7,0.19160238]
[1733325682238,0.55,3815.4,3814.3,2.62164]
[1733325682523,1.6204,3815.8,3814.8,0.19160238]
[1733325682733,0.4258966,3815.7,3815.2,2.62109]
[1733325682932,0.183031,3815.7,3815.1,0.19160238]
[1733325683084,1.6204,3815.8,3815.7,2.62075]
[1733325683593,1.6086,3816.4,3815.9,2.6206]
[1733325683927,1.6086,3816.4,3815.3,0.19160238]
[1733325683928,1.6086,3816.4,3816.0,2.62054]
[1733325684087,1.6086,3816.4,3815.3,0.19160238]
[1733325684290,1.6086,3816.4,3815.8,2.62065]
[1733325684492,0.17708233,3816.3,3815.3,0.19160238]
[1733325684796,0.17708233,3816.3,3815.5,2.62087]
[1733325685329,0.17708233,3816.3,3815.4,0.19160238]
[1733325685488,0.17708233,3816.3,3815.2,0.19160238]
[1733325685690,0.17708233,3816.3,3815.5,2.62087]
[1733325685892,0.19479056,3816.2,3815.2,0.19160238]
[1733325686218,0.1622233,3816.5,3816.2,2.62036]
[1733325686419,0.1622233,3816.5,3815.7,0.19160238]
[1733325686592,0.1622233,3816.5,3815.5,0.19160238]
[1733325686932,0.1622233,3816.5,3815.3,3.19160238]
[1733325687135,0.1622233,3816.5,3815.5,0.19160238]
[1733325687335,0.1622233,3816.5,3815.2,2.62104]
[1733325687336,0.1622233,3816.5,3815.2,0.19160238]
[1733325687489,0.1622233,3816.5,3815.7,2.62073]
[1733325687830,0.1622233,3816.5,3815.4,3.0]
[1733325688039,0.1622233,3816.5,3815.7,2.62074]
[1733325688040,0.55,3816.4,3815.7,2.62074]
[1733325688533,0.55,3816.4,3815.5,0.19160238]
[1733325688829,0.55,3816.4,3815.7,2.62068]
[1733325689031,0.55,3816.4,3815.7,2.62071]
[1733325689332,0.1622233,3816.5,3816.4,2.62027]
[1733325689636,0.1622233,3816.5,3816.0,0.19160238]
[1733325689943,0.1622233,3816.5,3816.3,2.62032]
[1733325690291,0.1622233,3816.5,3816.0,0.19160238]
[1733325690491,0.55,3816.4,3815.6,0.19160238]
[1733325690895,0.55,3816.4,3815.9,2.6206]
[1733325691092,0.55,3816.4,3815.6,0.19160238]
[1733325691305,0.55,3816.4,3815.6,2.81235238]
[1733325691542,0.1622233,3816.5,3816.0,0.19160238]
[1733325691700,0.1622233,3816.5,3816.2,2.6204]
[1733325691894,0.1622233,3816.5,3816.0,0.19160238]
[1733325692432,0.1622233,3816.5,3816.4,2.62027]
[1733325694594,0.1622233,3816.5,3816.0,0.19160238]
[1733325694795,0.1622233,3816.5,3816.0,2.6205]
[1733325695041,0.55,3816.4,3815.7,0.19160238]
[1733325695248,0.55,3816.4,3815.9,2.62059]
[1733325695431,0.55,3816.4,3816.0,2.62054]
[1733325695850,0.55,3816.4,3815.7,0.19160238]
[1733325696144,0.1622233,3816.5,3816.1,0.19160238]
[1733325696302,0.1622233,3816.5,3816.2,2.62039]
[1733325696637,0.1622233,3816.5,3816.3,2.62032]
[1733325697232,0.1622233,3816.5,3816.1,0.19160238]
[1733325697442,0.1622233,3816.5,3816.2,2.62039]
[1733325697801,0.1622233,3816.5,3816.4,2.62027]
[1733325698313,0.7122233,3816.5,3815.9,2.81220238]
[1733325698718,0.55,3816.4,3815.6,2.81236238]
[1733325698907,0.55,3816.4,3815.3,0.19160238]
[1733325699107,1.6224,3815.8,3814.6,0.19160238]
[1733325699306,0.55,3815.2,3814.2,0.19160238]
[1733325699543,0.55,3815.0,3814.2,2.81334238]
[1733325699752,0.55,3815.0,3814.4,0.19160238]
[1733325699908,0.55,3815.0,3814.4,2.81323238]
[1733325700257,1.5751,3815.6,3814.8,0.19160238]
[1733325700561,1.5751,3815.6,3815.4,2.62095]
[1733325701147,1.5751,3815.6,3815.0,0.19160238]
[1733325701351,1.6597,3816.4,3815.5,0.19160238]
[1733325701509,0.18219233,3816.3,3815.7,2.62073]
[1733325701846,0.18219233,3816.3,3815.8,2.62066]
[1733325702144,0.18219233,3816.3,3816.0,2.62049]
[1733325702366,0.1622233,3816.5,3816.1,2.62046]
[1733325702650,0.1622233,3816.5,3816.4,2.81187238]
[1733325703876,0.1622233,3816.5,3816.4,7.34937238]
[1733325704222,0.1622233,3816.5,3816.4,4.34937238]
[1733325704665,0.1622233,3816.5,3816.4,7.34937238]
[1733325704967,3.3e-06,3816.5,3816.4,8.69967899]
[1733325705135,0.00950094,3817.6,3817.5,2.61951]
[1733325705337,0.00950094,3817.6,3817.5,7.72263875]
[1733325705338,9.4e-07,3817.6,3817.5,7.72263875]
[1733325706429,9.4e-07,3817.6,3817.5,4.36931238]
[1733325706832,9.4e-07,3817.6,3817.5,0.19160238]
[1733325707367,9.4e-07,3817.6,3817.5,2.81111238]
[1733325707528,9.4e-07,3817.6,3817.5,0.19160238]
[1733325707728,9.4e-07,3817.6,3817.5,2.81111238]
[1733325707968,9.4e-07,3817.6,3817.5,0.19160238]
[1733325708140,9.4e-07,3817.6,3817.3,0.19160238]
[1733325708555,9.4e-07,3817.6,3817.5,0.19160238]
[1733325708739,9.4e-07,3817.6,3817.1,0.19160238]
[1733325709269,9.4e-07,3817.6,3817.5,0.19160238]
[1733325709485,9.4e-07,3817.6,3817.5,2.81111238]
[1733325709837,9.4e-07,3817.6,3817.4,0.19160238]
[1733325710034,9.4e-07,3817.6,3817.1,0.19160238]
[1733325710473,9.4e-07,3817.6,3817.4,0.19160238]
[1733325710641,9.4e-07,3817.6,3817.0,0.19160238]
[1733325711181,9.4e-07,3817.6,3817.1,2.61978]
[1733325711697,9.4e-07,3817.6,3817.3,0.19160238]
[1733325711881,9.4e-07,3817.6,3816.6,3.0]
[1733325711882,9.4e-07,3817.6,3817.5,0.19160238]
[1733325712058,9.4e-07,3817.6,3817.5,2.81111238]
[1733325712785,9.4e-07,3817.6,3817.3,0.19160238]
[1733325712986,9.4e-07,3817.6,3817.1,0.19160238]
[1733325713945,9.4e-07,3817.6,3816.5,0.19160238]
[1733325714146,0.55,3817.5,3816.1,0.19160238]
[1733325714378,0.55,3817.2,3816.1,0.19160238]
[1733325714578,0.55,3817.5,3816.6,0.19160238]
[1733325715296,9.4e-07,3817.6,3816.8,0.19160238]
[1733325715589,9.4e-07,3817.6,3817.4,0.19160238]
[1733325715761,9.4e-07,3817.6,3817.4,2.81115238]
[1733325716161,9.4e-07,3817.6,3817.5,2.61951]
[1733325716555,9.4e-07,3817.6,3817.5,2.90062124]
[1733325717588,9.4e-07,3817.6,3817.5,5.90062124]
[1733325718361,9.4e-07,3817.6,3817.5,5.61951]
[1733325718763,9.4e-07,3817.6,3817.5,2.61951]
[1733325719183,9.4e-07,3817.6,3817.5,5.64570202]
[1733325719514,9.4e-07,3817.6,3817.5,6.0002947]
[1733325721180,9.4e-07,3817.6,3817.5,7.6136947]
[1733325721373,9.4e-07,3817.6,3817.5,8.65619541]
[1733325722313,9.4e-07,3817.6,3817.5,7.80529708]
[1733325722600,9.4e-07,3817.6,3817.5,2.81111238]
[1733325723309,9.4e-07,3817.6,3817.4,0.19160238]
[1733325723517,9.4e-07,3817.6,3817.1,0.19160238]
[1733325724213,9.4e-07,3817.6,3817.3,0.19160238]
[1733325724505,9.4e-07,3817.6,3817.5,2.81111238]
[1733325724709,9.4e-07,3817.6,3817.4,0.19160238]
[1733325725208,9.4e-07,3817.6,3817.2,0.19160238]
[1733325726067,9.4e-07,3817.6,3817.3,0.19160238]
[1733325726268,9.4e-07,3817.6,3817.1,0.19160238]
[1733325726502,0.31693303,3817.6,3817.1,0.19160238]
[1733325726808,9.4e-07,3817.6,3817.1,0.19160238]
[1733325727611,9.4e-07,3817.6,3817.3,0.19160238]
[1733325727764,9.4e-07,3817.6,3817.5,0.04948849]
[1733325728186,9.4e-07,3817.6,3817.0,0.04948849]
[1733325728399,9.4e-07,3817.6,3817.3,0.04948849]
[1733325728635,9.4e-07,3817.6,3817.5,2.66899849]
[1733325728966,9.4e-07,3817.6,3817.5,4.74346934]
[1733325729251,9.4e-07,3817.6,3817.5,7.74346934]
[1733325729969,9.4e-07,3817.6,3817.5,8.12129571]
[1733325730292,9.4e-07,3817.6,3817.5,7.74346934]
[1733325730667,9.4e-07,3817.6,3817.5,0.04948849]
[1733325730988,9.4e-07,3817.6,3817.5,4.31129849]
[1733325731161,9.4e-07,3817.6,3817.5,4.68912486]
[1733325732083,9.4e-07,3817.6,3817.5,7.31129849]
[1733325733068,9.4e-07,3817.6,3817.5,7.68912486]
[1733325733270,9.4e-07,3817.6,3817.5,8.72000435]
[1733325733623,9.4e-07,3817.6,3817.5,8.34217798]
[1733325734106,9.4e-07,3817.6,3817.5,8.72000435]
[1733325734705,9.4e-07,3817.6,3817.5,7.31129849]
[1733325734920,9.4e-07,3817.6,3817.5,2.66899849]
[1733325736223,9.4e-07,3817.6,3817.5,3.04538319]
[1733325736517,9.4e-07,3817.6,3817.5,5.66899849]
[1733325737671,9.4e-07,3817.6,3817.5,2.66899849]
[1733325737873,9.4e-07,3817.6,3817.5,0.04948849]
[1733325738412,9.4e-07,3817.6,3817.5,2.66899849]
[1733325738615,9.4e-07,3817.6,3817.5,3.19786534]
[1733325739111,9.4e-07,3817.6,3817.5,5.66899849]
[1733325739273,2.82248579,3818.0,3817.9,2.61924]
[1733325739609,2.82248579,3818.0,3817.9,5.66872849]
[1733325740195,2.82248579,3818.0,3817.9,7.32282849]
[1733325740406,5.79e-06,3818.0,3817.9,7.32282849]
[1733325740708,5.79e-06,3818.0,3817.9,8.35460898]
[1733325741717,5.79e-06,3818.0,3817.9,8.73018535]
[1733325742071,5.79e-06,3818.0,3817.9,8.35460898]
[1733325743075,5.79e-06,3818.0,3817.9,8.73018535]
[1733325744020,5.79e-06,3818.0,3817.9,8.93018535]
[1733325744513,5.79e-06,3818.0,3817.9,9.58018535]
[1733325744715,5.79e-06,3818.0,3817.9,9.48018535]
[1733325744918,5.79e-06,3818.0,3817.9,9.58018535]
[1733325745682,5.79e-06,3818.0,3817.9,8.65460898]
[1733325745883,6.51020485,3818.9,3818.8,4.27340849]
[1733325746081,5.20092485,3818.9,3818.8,7.92808863]
[1733325746279,5.20092485,3818.9,3818.8,8.318665]
[1733325748716,5.20092485,3818.9,3818.8,7.92808863]
[1733325749527,5.20092485,3818.9,3818.8,7.27340849]
[1733325749893,5.20092485,3818.9,3818.8,7.67510986]
[1733325750779,8.48096714,3818.9,3818.8,8.52510986]
[1733325751222,1.93476714,3818.9,3818.8,8.52510986]
[1733325751517,1.93476714,3818.9,3818.8,8.49375458]
[1733325751730,1.93476714,3818.9,3818.8,9.14054721]
[1733325752077,7.14e-06,3819.0,3818.9,6.16855]
[1733325752277,7.14e-06,3819.0,3818.9,8.08425137]
[1733325752805,7.14e-06,3819.0,3818.9,7.53425137]
[1733325753892,7.14e-06,3819.0,3818.9,8.08425137]
[1733325754099,7.14e-06,3819.0,3818.9,9.11603186]
[1733325755294,7.14e-06,3819.0,3818.9,8.61552035]
[1733325755679,59.96041942,3819.1,3819.0,7.94628]
[1733325755918,59.96041942,3819.1,3819.0,8.64134265]
[1733325756080,57.34199942,3819.1,3819.0,8.64134265]
[1733325756280,57.34199942,3819.1,3819.0,9.58864679]
[1733325756281,56.03278942,3819.1,3819.0,9.58864679]
[1733325756698,56.03278942,3819.1,3819.0,9.85044679]
[1733325756900,56.03278942,3819.1,3819.0,9.89993528]
[1733325757113,52.10515942,3819.1,3819.0,9.89993528]
[1733325757294,45.21041223,3819.1,3819.0,8.92867705]
[1733325757491,38.32273193,3819.1,3819.0,7.35087705]
[1733325757701,38.1243579,3819.1,3819.0,7.35087705]
[1733325757915,33.92553565,3819.1,3819.0,7.35087705]
[1733325758179,33.92553565,3819.1,3819.0,7.91619505]
[1733325758180,28.68965565,3819.1,3819.0,7.91619505]
[1733325758513,28.59773942,3819.1,3819.0,7.91619505]
[1733325759135,23.36110942,3819.1,3819.0,7.91619505]
[1733325759437,21.24013942,3819.1,3819.0,7.91619505]
[1733325759645,15.84680639,3819.1,3819.0,7.91619505]
[1733325759803,12.91738702,3819.1,3819.0,7.93085338]
[1733325760003,5.53225437,3819.1,3819.0,7.5524544]
[1733325760221,7.50360393,3819.8,3819.7,3.1798]
[1733325760400,7.50360393,3819.8,3819.7,5.918]
[1733325760629,7.50360393,3819.8,3819.7,6.270472]
[1733325760830,7.50360393,3819.8,3819.7,5.818]
[1733325761238,0.95875393,3819.8,3819.7,6.170472]
[1733325761408,0.95875393,3819.8,3819.7,6.1798]
[1733325761608,0.95875393,3819.8,3819.7,5.618]
[1733325761942,0.95875393,3819.8,3819.7,5.9395303]
[1733325762107,0.95875393,3819.8,3819.7,2.9395303]
[1733325762305,0.95875393,3819.8,3819.6,0.04948849]
[1733325762501,0.95875393,3819.8,3819.7,2.618]
[1733325762716,0.95875393,3819.8,3819.6,0.04948849]
[1733325762947,2.53015393,3819.8,3819.6,0.04948849]
[1733325763304,2.53015393,3819.8,3818.6,0.02617369]
[1733325763508,0.25301539,3819.7,3819.3,0.04948849]
[1733325763717,0.25301539,3819.7,3819.2,0.04948849]
[1733325764544,0.52327071,3819.6,3819.2,0.04948849]
[1733325764745,2.53015393,3819.8,3819.6,0.04948849]
[1733325764946,0.95875393,3819.8,3819.7,2.618]
[1733325765431,0.95875393,3819.8,3819.7,2.66748849]
[1733325765955,0.95875393,3819.8,3819.7,5.66748849]
[1733325767635,0.95875393,3819.8,3819.7,5.618]
[1733325767836,0.95875393,3819.8,3819.7,0.04948849]
[1733325768042,0.95875393,3819.8,3819.7,2.66748849]
[1733325768985,0.95875393,3819.8,3819.0,0.0261748]
[1733325768986,1.6568,3819.7,3819.2,2.66776849]
[1733325769285,1.6568,3819.7,3819.2,0.04948849]
[1733325769449,1.91835539,3819.7,3819.2,0.04948849]
[1733325769783,1.6568,3819.7,3819.4,2.66764849]
[1733325769985,1.6568,3819.7,3819.4,0.04948849]
[1733325770181,1.6568,3819.7,3818.8,2.61858]
[1733325770182,1.6568,3819.7,3819.6,2.66755849]
[1733325770334,0.95875393,3819.8,3819.7,2.618]
[1733325770741,0.95875393,3819.8,3819.7,5.618]
[1733325770981,0.95875393,3819.8,3819.6,3.0]
[1733325771181,0.95875393,3819.8,3819.2,0.04948849]
[1733325771363,0.95875393,3819.8,3819.7,2.618]
[1733325771690,0.95875393,3819.8,3819.7,2.6069649]
[1733325772539,0.95875393,3819.8,3819.7,5.6069649]
[1733325774379,3.93e-06,3819.8,3819.7,5.6069649]
[1733325774538,3.93e-06,3819.8,3819.7,5.63313555]
[1733325774734,3.93e-06,3819.8,3819.7,5.6069649]
[1733325775345,5.94333157,3820.7,3820.1,2.66714849]
[1733325775550,7.25441144,3820.7,3819.9,0.04948849]
[1733325775769,7.25441144,3820.7,3819.9,0.04748849]
[1733325775936,7.25441144,3820.7,3819.9,3.04748849]
[1733325776136,7.25441144,3820.7,3820.0,3.0]
[1733325776875,7.25441144,3820.7,3820.0,5.61777]
[1733325777054,5.94333157,3820.7,3820.2,0.04748849]
[1733325777379,5.94333157,3820.7,3820.6,2.61738]
[1733325777745,5.94333157,3820.7,3820.6,0.04748849]
[1733325777978,5.94333157,3820.7,3820.6,2.66486849]
[1733325778182,5.94333157,3820.7,3820.6,0.04748849]
[1733325778710,5.94333157,3820.7,3820.6,2.66486849]
[1733325779366,5.94333157,3820.7,3820.6,0.04748849]
[1733325780383,5.94333157,3820.7,3820.6,2.66486849]
[1733325780901,5.94333157,3820.7,3820.6,5.66486849]
[1733325781270,4.63467157,3820.7,3820.6,5.66486849]
[1733325781471,1.6223,3821.9,3820.6,5.66486849]
[1733325781472,30.42115227,3821.7,3821.6,2.8167]
[1733325781712,6.10139481,3822.4,3822.3,6.22550849]
[1733325781870,1.77606895,3822.4,3822.3,7.36576629]
[1733325782084,2.41560943,3823.2,3823.1,3.34748849]
[1733325782283,6.41812398,3823.3,3823.2,2.6156]
[1733325782524,1.93144771,3823.3,3823.2,16.74674801]
[1733325782689,1e-08,3824.1,3823.9,5.96261849]
[1733325782889,0.1,3824.3,3823.9,5.96261849]
[1733325782890,1.63265857,3824.2,3824.1,5.96247849]
[1733325783103,1.63265857,3824.2,3824.1,5.66247849]
[1733325783314,61.49058316,3824.2,3824.1,5.68861983]
[1733325783514,59.65197987,3824.2,3824.1,6.08725757]
[1733325783719,59.65197987,3824.2,3824.1,7.23406282]
[1733325783949,59.65197987,3824.2,3824.1,7.49586282]
[1733325784092,55.41624054,3824.2,3824.1,16.63886282]
[1733325784455,47.01932603,3824.2,3824.1,7.47946992]
[1733325784597,47.01932603,3824.2,3824.1,6.78798349]
[1733325784793,47.01932603,3824.2,3824.1,3.52618349]
[1733325784993,47.01932603,3824.2,3824.1,2.99257639]
[1733325785546,47.01932603,3824.2,3824.1,0.04748849]
[1733325786303,40.48202603,3824.2,3824.1,0.24748849]
[1733325787008,39.17456603,3824.2,3824.1,0.24748849]
[1733325787239,33.94475603,3824.2,3824.1,4.00791314]
[1733325787437,33.94475603,3824.2,3824.1,4.55791192]
[1733325787652,32.95435603,3824.2,3824.1,4.55791192]
[1733325788020,31.92224188,3824.2,3824.1,4.55791192]
[1733325788226,25.38509188,3824.2,3824.1,4.21202939]
[1733325788441,25.38509188,3824.2,3824.1,4.5712441]
[1733325788823,25.38509188,3824.2,3824.1,4.44510644]
[1733325789022,24.07763188,3824.2,3824.1,4.11202914]
[1733325789345,16.24032188,3824.2,3824.1,4.46804427]
[1733325789598,16.24032188,3824.2,3824.1,3.6071342]
[1733325789754,16.24032188,3824.2,3824.1,3.4071342]
[1733325789983,16.24032188,3824.2,3824.1,3.60713464]
[1733325790111,16.24032188,3824.2,3824.1,4.44553672]
[1733325790311,16.24032188,3824.2,3824.1,3.38099507]
[1733325790610,16.24032188,3824.2,3824.1,0.04748849]
[1733325791356,17.29611642,3824.2,3823.5,0.04748849]
[1733325791658,1.6,3824.1,3823.6,0.04748849]
[1733325792155,1.6,3824.1,3822.5,0.02614706]
[1733325792156,1.6,3824.1,3823.5,0.04748849]
[1733325792511,1.6,3824.1,3822.5,2.96671146]
[1733325792512,1.6,3824.1,3823.3,0.04748849]
[1733325792734,1.6,3824.1,3823.1,0.04748849]
[1733325792937,1.6,3824.1,3823.4,0.04748849]
[1733325792938,2.984461,3824.1,3823.4,0.04748849]
[1733325793139,1.6,3824.1,3823.1,0.02614838]
[1733325793373,1.6,3824.1,3823.1,0.02614889]
[1733325793666,1.6,3824.1,3823.0,0.07363738]
[1733325793866,1.6,3824.1,3822.8,0.07363735]
[1733325794164,0.1,3824.0,3823.0,0.04748849]
[1733325794468,2.00961164,3824.0,3822.8,0.04748849]
[1733325794639,2.00961164,3824.0,3822.4,0.04748849]
[1733325794839,1.6,3824.1,3823.2,0.04748849]
[1733325795150,1.6,3824.1,3822.6,3.0]
[1733325795355,0.1,3823.6,3822.1,0.02614998]
[1733325795674,1.68541151,3823.7,3821.3,2.61687]
[1733325795675,1.5329,3823.1,3821.3,0.07364263]
[1733325795861,0.53023788,3823.7,3821.1,0.04748849]
[1733325795862,0.1,3822.2,3821.1,0.04748849]
[1733325796060,0.55,3822.6,3821.2,0.02616039]
[1733325796226,0.1,3822.2,3821.2,0.02616039]
[1733325796575,1.69481151,3822.1,3820.7,0.02616016]
[1733325796753,0.22448115,3822.5,3820.0,2.64393434]
[1733325796754,0.70251151,3821.6,3820.0,2.64393434]
[1733325796922,0.1,3821.1,3820.0,0.02616434]
[1733325797132,0.1,3820.9,3819.7,0.36704236]
[1733325797337,1.79481151,3821.3,3819.8,2.64408951]
[1733325797632,0.1,3820.9,3819.8,0.02616951]
[1733325797836,0.15251151,3821.1,3819.7,2.6441594]
[1733325798275,0.15251151,3821.1,3819.8,3.0]
[1733325798449,0.1,3820.9,3819.8,3.0]
[1733325798653,2.02929266,3821.3,3819.9,0.02617083]
[1733325798981,2.02929266,3821.3,3819.9,2.64402083]
[1733325798982,0.1,3820.9,3819.9,2.64402083]
[1733325799278,0.1,3820.9,3819.6,0.07365844]
[1733325799436,0.1,3820.9,3819.8,3.0]
[1733325799834,0.1,3820.9,3819.6,0.07365844]
[1733325800082,0.1,3820.9,3819.6,3.07365844]
[1733325800237,0.1,3820.9,3819.6,0.07365844]
[1733325800572,0.1,3820.9,3819.6,3.07365844]
[1733325800772,0.1,3820.9,3819.6,0.07365844]
[1733325800993,1.5423,3821.2,3820.0,0.04748849]
[1733325801196,1.5423,3821.2,3820.8,3.0]
[1733325801350,1.5399,3821.8,3821.1,2.61704]
[1733325801548,1.5399,3821.8,3821.1,0.0261636]
[1733325801763,1.79241151,3821.7,3820.1,0.04748849]
[1733325801981,1.79241151,3821.7,3820.5,3.0]
[1733325801982,1.5399,3821.5,3820.5,3.0]
[1733325802160,0.1,3821.3,3820.4,3.0]
[1733325802380,0.1,3821.3,3819.8,0.02616734]
[1733325802692,0.1,3821.3,3819.7,2.61797]
[1733325802693,1.5259,3821.2,3819.9,3.04748849]
[1733325802898,1.67841151,3821.2,3819.7,0.02616833]
[1733325803197,1.5259,3821.2,3820.4,3.0]
[1733325803496,1.5259,3821.2,3820.6,2.61738]
[1733325803707,1.5259,3821.2,3820.3,0.04748849]
[1733325803992,1.5259,3821.2,3820.4,2.61751]
[1733325804196,1.67841151,3821.2,3819.9,3.0]
[1733325804363,1.67841151,3821.2,3819.9,2.644018]
[1733325804570,1.5259,3821.2,3819.9,0.026168]
[1733325804750,1.67841151,3821.2,3819.7,0.02616912]
[1733325804955,1.67841151,3821.2,3819.9,2.61785]
[1733325805156,1.5259,3821.2,3820.3,3.0]
[1733325805659,1.5259,3821.2,3820.2,3.0]
[1733325805885,1.5259,3821.2,3820.3,2.61756]
[1733325806099,1.5259,3821.2,3820.4,2.64368913]
[1733325806254,1.5259,3821.2,3820.4,0.02616913]
[1733325806565,1.5259,3821.2,3819.9,2.66529849]
[1733325806566,1.5259,3821.2,3820.6,3.0]
[1733325806765,1.5259,3821.2,3820.5,3.0]
[1733325806968,1.5259,3821.2,3820.6,5.61733]
[1733325807171,1.5259,3821.2,3819.9,2.61786]
[1733325807375,1.5259,3821.2,3820.0,5.61779]